bitfinex-derivatives/quotes_ETHF0:USTF0_20260310
["timestamp","ask_amount","ask_price","bid_price","bid_amount"]
[1773147507890,1.84211325,2048.5,2047.5,1.91399988]
[1773147508393,1.84211325,2048.3,2047.5,1.91399988]
[1773147510696,1.84211325,2048.3,2047.1,1.91399988]
[1773147511289,1.84211325,2048.8,2047.3,1.91399988]
[1773147511496,1.84211325,2048.8,2047.6,1.91399988]
[1773147512093,1.84211325,2048.8,2047.6,2.15816988]
[1773147513599,1.84211325,2049.0,2047.6,2.15816988]
[1773147514294,1.84211325,2049.0,2047.9,2.12582442]
[1773147514895,2.08612325,2049.0,2047.9,1.88168442]
[1773147519590,2.08612325,2049.0,2047.5,1.88168442]
[1773147519794,2.00757468,2048.8,2047.5,1.88168442]
[1773147520392,1.76354468,2048.8,2047.7,1.88168442]
[1773147520896,1.76354468,2048.8,2047.9,1.88168442]
[1773147524603,2.00757468,2048.8,2047.9,1.88168442]
[1773147524800,1.76354468,2048.6,2047.9,1.88168442]
[1773147540622,1.76354468,2048.6,2048.0,6.389]
[1773147540923,1.76354468,2048.6,2047.9,8.27068442]
[1773147541122,1.76354468,2048.6,2048.0,1.80962335]
[1773147542023,1.92530289,2049.0,2048.0,1.80962335]
[1773147542226,1.92530289,2049.0,2048.0,2.05374335]
[1773147546926,1.92530289,2049.0,2048.2,1.8546558]
[1773147551225,1.95424183,2049.3,2048.6,1.8546558]
[1773147551432,1.95424183,2049.3,2048.8,1.8546558]
[1773147552431,0.00374688,2049.3,2048.8,1.85924478]
[1773147552925,1.95798871,2049.3,2048.8,1.85924478]
[1773147554123,1.95424183,2049.9,2048.8,1.85924478]
[1773147554324,1.95424183,2049.7,2048.8,1.85924478]
[1773147555129,1.95862985,2049.7,2048.8,1.85924478]
[1773147556037,2.20255985,2049.7,2048.8,0.00458898]
[1773147556329,2.20255985,2049.7,2048.8,1.85924478]
[1773147559832,2.20255985,2049.7,2048.8,6.39358898]
[1773147560034,2.20255985,2049.7,2048.8,0.00458898]
[1773147562134,2.20255985,2049.7,2048.8,1.85924478]
[1773147565842,2.20255985,2049.7,2048.8,0.00458898]
[1773147567944,1.95424183,2049.2,2048.8,0.00458898]
[1773147568239,1.95424183,2049.2,2048.6,1.8546558]
[1773147569044,1.95424183,2049.2,2048.6,1.85971694]
[1773147572637,1.95424183,2049.2,2048.6,0.00506114]
[1773147573042,1.95424183,2049.2,2048.6,1.85971694]
[1773147575347,1.95424183,2049.2,2048.7,1.95245865]
[1773147585054,1.92453129,2049.6,2048.7,1.95245865]
[1773147585353,1.92453129,2049.4,2048.7,1.95245865]
[1773147585652,0.00438802,2049.7,2048.9,1.95245865]
[1773147585853,0.00438802,2049.7,2049.1,1.95245865]
[1773147586047,1.97870295,2049.7,2049.1,1.95245865]
[1773147586447,0.00438802,2049.7,2049.1,1.95245865]
[1773147588154,1.97870295,2049.7,2049.1,1.95245865]
[1773147591655,1.97870295,2049.7,2049.2,1.91280834]
[1773147594252,1.97870295,2049.7,2049.3,6.389]
[1773147594451,1.97870295,2049.7,2049.3,8.30180834]
[1773147594853,1.97870295,2049.7,2049.4,1.91280834]
[1773147596049,1.97870295,2049.7,2049.4,8.30180834]
[1773147600158,1.97431493,2049.9,2049.5,1.91280834]
[1773147600353,1.60896762,2050.1,2049.8,1.91280834]
[1773147600553,1.03645816,2050.3,2050.0,1.91280834]
[1773147600754,6.31572136,2051.0,2050.2,1.91280834]
[1773147600755,1.03645816,2050.6,2050.2,1.91280834]
[1773147600950,2.94029144,2050.6,2049.8,1.91280834]
[1773147601151,4.05185132,2051.2,2049.7,1.90383328]
[1773147601152,1.03915513,2051.1,2050.6,1.91280834]
[1773147601356,1.04436609,2051.1,2050.6,0.00372727]
[1773147601552,1.03915513,2051.0,2050.5,1.91280834]
[1773147601855,1.04691133,2051.1,2050.4,6.389]
[1773147602061,1.04691133,2051.1,2050.4,8.30180834]
[1773147602363,1.04691133,2051.1,2050.5,1.91280834]
[1773147602657,1.04691133,2051.1,2050.5,1.91802495]
[1773147605952,1.04691133,2051.1,2050.5,0.00521661]
[1773147606358,1.04691133,2051.1,2050.3,1.97096437]
[1773147607364,1.04691133,2051.1,2050.3,1.97667796]
[1773147608170,0.00521096,2051.1,2050.3,1.97667796]
[1773147608458,1.07819752,2051.1,2050.3,1.97667796]
[1773147608659,1.07819752,2051.1,2050.3,0.00571359]
[1773147608859,1.07530522,2050.9,2050.3,0.00571359]
[1773147609756,1.07530522,2050.9,2050.3,1.97667796]
[1773147611560,1.31909522,2050.9,2050.3,0.00571359]
[1773147611756,1.31909522,2050.9,2049.9,1.97096437]
[1773147612067,1.31909522,2050.9,2050.0,1.97096437]
[1773147612363,1.07530522,2050.9,2050.0,1.97096437]
[1773147612659,1.07530522,2050.9,2050.0,1.97554092]
[1773147613258,1.01251111,2051.1,2050.0,1.97554092]
[1773147613565,0.00521096,2051.1,2050.1,1.97096437]
[1773147613763,1.01251111,2051.1,2050.1,1.97096437]
[1773147613960,1.01251111,2051.1,2050.3,1.97096437]
[1773147614364,1.01251111,2051.1,2050.5,1.97096437]
[1773147615158,0.00521096,2051.1,2050.5,1.97096437]
[1773147615365,1.01314605,2051.5,2050.5,1.97096437]
[1773147615563,1.01314605,2051.5,2050.7,1.97096437]
[1773147615765,1.25685605,2051.5,2050.6,1.97096437]
[1773147616360,1.26293211,2051.5,2050.6,1.97096437]
[1773147618161,1.19664386,2051.0,2050.1,1.97096437]
[1773147618361,1.19664386,2051.0,2050.3,1.97096437]
[1773147621661,1.90206532,2051.0,2050.3,1.97096437]
[1773147621866,1.15810787,2051.1,2050.6,1.97096437]
[1773147622169,1.09281479,2051.5,2050.8,1.97096437]
[1773147622765,1.08870227,2051.4,2051.0,1.97096437]
[1773147623170,2.99693343,2051.5,2051.0,1.97096437]
[1773147623469,1.08879205,2051.4,2051.0,1.97096437]
[1773147624969,0.00607606,2051.5,2051.0,1.97096437]
[1773147625170,1.03859846,2051.5,2051.0,1.97096437]
[1773147625972,1.03859846,2051.5,2050.2,1.97096437]
[1773147626168,1.03254556,2051.3,2050.7,1.97096437]
[1773147627173,1.03450042,2051.4,2050.7,1.97096437]
[1773147627873,1.04057648,2051.5,2050.7,1.97096437]
[1773147628170,0.00607606,2051.5,2050.7,1.97096437]
[1773147629168,0.00607606,2051.5,2050.9,1.97096437]
[1773147630575,1.01117661,2051.5,2050.9,1.97096437]
[1773147631579,0.00607606,2051.5,2050.9,1.97096437]
[1773147632078,1.01478783,2051.5,2051.0,1.97096437]
[1773147632279,0.00607606,2051.5,2051.0,1.97096437]
[1773147633681,1.03419172,2051.5,2051.0,1.97096437]
[1773147633981,0.00607606,2051.5,2051.0,1.97096437]
[1773147634982,1.03271598,2051.5,2051.0,1.97096437]
[1773147635481,1.02668111,2051.9,2051.0,1.97096437]
[1773147635680,1.03275717,2052.1,2051.0,1.97096437]
[1773147636583,1.03665857,2052.1,2051.0,1.97096437]
[1773147638179,1.03665857,2052.1,2050.7,0.2438]
[1773147638180,1.03665857,2052.1,2051.2,1.86043744]
[1773147639990,0.99049909,2051.7,2051.2,1.86043744]
[1773147641386,0.92559491,2051.5,2051.0,1.86043744]
[1773147642488,1.12311544,2051.6,2051.0,1.86043744]
[1773147642689,0.87941544,2051.7,2051.0,1.86043744]
[1773147644187,0.86477945,2051.6,2050.8,1.86043744]
[1773147645486,0.86477945,2051.6,2050.2,0.24386]
[1773147645487,0.86833772,2051.4,2050.3,1.99803584]
[1773147646693,1.1163672,2051.3,2050.3,1.99803584]
[1773147647190,0.87406772,2051.2,2050.3,1.99803584]
[1773147647593,0.87406772,2051.2,2050.4,1.99803584]
[1773147648093,0.87551357,2051.4,2050.4,1.99803584]
[1773147648594,0.87551357,2051.4,2050.6,1.99803584]
[1773147651398,1.14411206,2051.6,2050.6,1.99803584]
[1773147651693,6.99065086,2051.5,2050.6,1.99803584]
[1773147651896,1.14549103,2051.6,2050.6,1.99803584]
[1773147652095,0.90179103,2051.6,2050.6,1.99803584]
[1773147652495,0.89836864,2051.8,2050.8,1.99803584]
[1773147652696,0.89836864,2051.9,2050.8,1.99803584]
[1773147652890,0.89973159,2051.7,2051.0,1.99803584]
[1773147654094,0.90035587,2051.5,2050.5,6.387]
[1773147654387,0.90035587,2051.5,2050.6,1.99803584]
[1773147655593,0.9016683,2051.9,2050.6,2.24184584]
[1773147655796,0.9016683,2051.7,2050.6,2.24184584]
[1773147656902,0.88803496,2051.9,2050.6,2.24184584]
[1773147657402,0.88803496,2051.9,2050.9,1.99803584]
[1773147658593,0.90365522,2051.7,2051.1,1.99803584]
[1773147660399,0.90365522,2051.7,2050.9,1.99803584]
[1773147660999,0.24367,2051.8,2050.9,1.99803584]
[1773147661205,6.98628792,2051.7,2050.9,1.99803584]
[1773147661405,0.89397532,2051.7,2050.9,1.99803584]
[1773147661901,0.89519829,2051.9,2050.9,1.99803584]
[1773147662204,0.88925123,2052.1,2050.9,1.99803584]
[1773147662405,6.97734491,2052.0,2050.9,1.99803584]
[1773147662600,0.88534983,2052.0,2050.9,1.99803584]
[1773147662802,0.0039014,2052.1,2051.3,1.99803584]
[1773147663104,0.89043288,2052.6,2051.3,1.99803584]
[1773147663406,0.89043288,2052.4,2051.5,1.99803584]
[1773147664005,0.89590252,2052.4,2051.5,2.00393429]
[1773147667304,0.89625353,2052.4,2051.5,2.00393429]
[1773147668009,0.89190113,2052.2,2051.5,2.00393429]
[1773147669710,0.89528295,2052.2,2051.5,2.00393429]
[1773147672808,0.8007027,2052.0,2051.5,2.00393429]
[1773147673012,0.24364,2052.1,2051.5,2.00393429]
[1773147673210,1.04455801,2052.1,2051.5,2.00393429]
[1773147675015,0.79384299,2052.3,2051.5,2.00393429]
[1773147675218,0.79952124,2052.4,2051.5,2.00393429]
[1773147676116,0.00546964,2052.4,2051.5,2.00393429]
[1773147678217,0.79444493,2052.4,2051.7,1.88083493]
[1773147680621,0.24357,2052.7,2051.7,1.88083493]
[1773147680814,0.76513872,2053.0,2051.7,1.88083493]
[1773147681120,0.76513872,2052.8,2051.7,1.88083493]
[1773147681322,0.76534193,2052.6,2051.7,1.88083493]
[1773147681820,0.77094963,2052.6,2051.7,1.88083493]
[1773147682017,0.76102777,2052.4,2051.7,1.88083493]
[1773147683421,0.0056077,2052.6,2051.7,1.88083493]
[1773147683818,0.7776143,2052.6,2051.7,1.88083493]
[1773147685728,0.0056077,2052.6,2051.7,1.88083493]
[1773147685930,0.75243157,2052.6,2051.7,1.88083493]
[1773147688235,0.0056077,2052.6,2051.7,1.88083493]
[1773147689730,0.57652454,2052.5,2051.7,1.88083493]
[1773147694437,0.43027639,2052.3,2051.7,1.88083493]
[1773147694737,1.82630808,2052.1,2051.4,1.83024987]
[1773147695633,1.82630808,2051.9,2051.4,1.83024987]
[1773147695935,1.82630808,2051.9,2051.4,1.83540436]
[1773147697139,1.82630808,2051.9,2051.2,1.83024987]
[1773147698133,2.06995808,2052.0,2051.2,1.83024987]
[1773147698333,2.06995808,2052.0,2051.2,1.83630613]
[1773147701642,1.82630808,2051.8,2051.2,1.83630613]
[1773147703335,1.82630808,2051.8,2050.6,0.24381]
[1773147703336,1.82630808,2051.6,2051.1,1.26214832]
[1773147703541,1.82630808,2051.6,2050.4,1.83024987]
[1773147704237,1.82630808,2051.4,2050.4,1.83024987]
[1773147704445,1.82630808,2051.2,2050.4,1.83390961]
[1773147709044,0.24375,2051.1,2050.4,1.83390961]
[1773147709249,1.95453268,2051.0,2050.4,1.83390961]
[1773147714852,0.24905688,2051.1,2050.4,1.83390961]
[1773147715059,0.00530688,2051.1,2050.4,1.83390961]
[1773147715255,8.33953268,2051.3,2050.4,1.83390961]
[1773147715854,1.95453268,2051.5,2050.4,1.83390961]
[1773147716152,1.95892346,2051.5,2050.4,1.83390961]
[1773147720356,1.95453268,2051.3,2050.4,1.83390961]
[1773147721058,0.24374,2051.2,2050.4,1.83390961]
[1773147721358,1.95453268,2051.1,2050.4,1.83390961]
[1773147722463,0.24374,2051.2,2050.4,1.83390961]
[1773147722664,2.19827268,2051.2,2050.4,1.83390961]
[1773147731370,1.94420975,2051.4,2050.4,1.83390961]
[1773147732264,1.94420975,2051.4,2050.6,1.89242814]
[1773147732470,0.00439078,2051.5,2050.7,1.89242814]
[1773147732670,1.94420975,2051.9,2050.8,1.89242814]
[1773147733575,1.94857213,2051.9,2050.8,1.89242814]
[1773147735075,1.94420975,2051.7,2050.8,1.89242814]
[1773147736177,1.94420975,2051.8,2050.8,1.89242814]
[1773147737076,1.94857213,2051.9,2050.8,1.89242814]
[1773147738679,2.19223213,2051.9,2050.8,1.89242814]
[1773147742076,0.00436238,2051.9,2050.8,1.89242814]
[1773147742277,1.94857213,2051.9,2050.8,1.89242814]
[1773147743480,1.94857213,2051.9,2051.0,1.89242814]
[1773147745084,1.94857213,2051.9,2051.2,1.89242814]
[1773147761596,4.05373275,2052.2,2051.7,1.92495346]
[1773147761597,1.86545437,2052.2,2051.7,1.92495346]
[1773147761999,1.86545437,2052.4,2051.9,1.92495346]
[1773147762298,1.86545437,2052.7,2052.1,1.92495346]
[1773147762497,1.86545437,2052.5,2052.1,1.92495346]
[1773147762691,1.8704006,2052.5,2052.1,1.93101284]
[1773147762900,1.86545437,2052.4,2052.1,0.00605938]
[1773147763096,1.86545437,2052.4,2052.1,1.93101284]
[1773147764399,1.86545437,2052.4,2052.1,0.00605938]
[1773147764796,1.86545437,2052.4,2052.1,1.93101284]
[1773147764996,1.8704006,2052.5,2052.1,1.93101284]
[1773147765894,0.00494623,2052.5,2052.1,1.93101284]
[1773147766300,1.83991077,2052.5,2052.1,1.93101284]
[1773147769002,0.00494623,2052.5,2052.1,1.93101284]
[1773147769201,1.83496454,2052.4,2052.1,0.00605938]
[1773147769402,1.83496454,2052.4,2052.1,1.81662478]
[1773147769595,1.83991077,2052.5,2052.1,1.81662478]
[1773147770299,1.83496454,2052.3,2051.7,1.8105654]
[1773147770902,1.83496454,2052.4,2051.7,1.8105654]
[1773147771102,0.00494623,2052.5,2051.7,1.8105654]
[1773147771301,1.83991077,2052.5,2051.7,1.81497195]
[1773147771500,1.83991077,2052.5,2051.9,1.8105654]
[1773147772702,1.83991077,2052.5,2051.7,0.00440655]
[1773147772703,2.08351077,2052.5,2051.7,0.00440655]
[1773147772997,1.83496454,2052.3,2051.8,1.8105654]
[1773147773204,1.83496454,2052.4,2051.8,1.8105654]
[1773147778211,0.00494623,2052.5,2051.8,1.8105654]
[1773147778607,1.83991077,2052.5,2051.8,1.8105654]
[1773147781014,0.00494623,2052.5,2051.8,1.8105654]
[1773147781405,1.83991077,2052.5,2051.8,1.8105654]
[1773147788419,0.00494623,2052.5,2051.8,1.8105654]
[1773147793420,4.05800155,2053.1,2052.0,1.85340622]
[1773147793421,1.80309691,2053.0,2052.0,1.85340622]
[1773147793621,1.80309691,2052.8,2052.1,1.85340622]
[1773147794421,1.80841568,2052.8,2052.1,1.85340622]
[1773147795423,1.80841568,2052.8,2052.2,1.85340622]
[1773147795827,1.80309691,2052.6,2051.8,1.85340622]
[1773147796027,1.80309691,2052.4,2051.8,1.85340622]
[1773147796326,1.80309691,2052.4,2051.7,1.85781277]
[1773147796526,1.80309691,2052.2,2051.7,0.00440655]
[1773147796917,1.80309691,2052.0,2051.1,1.85340622]
[1773147797121,1.80309691,2052.0,2051.2,1.85340622]
[1773147797525,1.80309691,2052.0,2051.3,1.85340622]
[1773147797926,1.80309691,2052.0,2051.3,1.85882577]
[1773147804725,1.80309691,2051.8,2051.3,0.00541955]
[1773147804930,1.80309691,2051.6,2050.6,1.85340622]
[1773147805827,1.80309691,2051.6,2050.6,1.85869929]
[1773147806423,1.80309691,2051.6,2050.7,1.85340622]
[1773147806626,0.24364,2052.1,2050.6,1.90439089]
[1773147806627,1.80309691,2052.0,2051.0,1.85340622]
[1773147808425,1.80309691,2052.0,2051.3,1.85340622]
[1773147808629,1.80309691,2052.2,2051.3,1.85340622]
[1773147809224,1.80309691,2052.2,2051.2,1.85340622]
[1773147809225,1.80309691,2052.0,2051.2,1.85340622]
[1773147811333,1.80309691,2052.0,2051.0,6.385]
[1773147811334,1.80309691,2051.8,2051.0,1.85340622]
[1773147813328,0.24368,2051.7,2051.0,1.85340622]
[1773147813530,1.80309691,2051.6,2050.7,1.85340622]
[1773147816435,1.80309691,2051.6,2051.1,1.80034769]
[1773147816635,1.89795741,2052.1,2051.1,1.80034769]
[1773147818337,1.89795741,2051.9,2051.1,1.80034769]
[1773147823448,2.14160741,2052.0,2051.1,1.80034769]
[1773147823648,2.14160741,2052.0,2051.3,1.80034769]
[1773147824848,1.89795741,2052.0,2051.7,1.80034769]
[1773147826945,1.89795741,2052.0,2051.4,1.9000738]
[1773147827242,1.89795741,2052.0,2051.5,1.85823472]
[1773147828046,1.90597396,2052.2,2051.6,1.9000738]
[1773147828350,1.90597396,2052.2,2051.7,1.85823472]
[1773147828651,1.90597396,2052.1,2051.5,1.85823472]
[1773147831154,1.90597396,2052.1,2051.7,1.85823472]
[1773147833255,1.90597396,2052.5,2051.9,1.85823472]
[1773147835154,1.90597396,2052.5,2052.1,1.85823472]
[1773147835353,1.90597396,2052.5,2052.1,1.86386176]
[1773147835944,8.29097396,2052.7,2052.1,1.86386176]
[1773147836144,1.90597396,2052.6,2052.1,1.86386176]
[1773147838356,1.90597396,2052.6,2052.1,0.00562704]
[1773147839658,1.90597396,2052.6,2052.1,1.86386176]
[1773147839849,1.90597396,2052.6,2052.1,0.00562704]
[1773147841858,1.90597396,2052.1,2051.5,1.85823472]
[1773147842061,1.90597396,2051.7,2051.1,1.85823472]
[1773147842858,1.90597396,2051.7,2051.1,1.86431566]
[1773147848464,2.14966396,2051.7,2051.1,0.00608094]
[1773147852465,1.90597396,2051.7,2051.1,0.00608094]
[1773147852662,1.90597396,2051.7,2051.1,1.77914397]
[1773147853471,1.77020276,2052.0,2051.1,1.77914397]
[1773147853664,1.77020276,2052.0,2051.3,1.77306303]
[1773147853869,1.77020276,2052.5,2051.3,1.77306303]
[1773147854070,1.77020276,2052.3,2051.3,1.77306303]
[1773147855872,1.77020276,2052.3,2051.4,1.77306303]
[1773147861878,1.77020276,2052.5,2051.4,1.77306303]
[1773147862480,1.77020276,2052.5,2051.5,1.77306303]
[1773147863780,1.77020276,2052.5,2051.2,3.09429652]
[1773147863781,1.77020276,2052.4,2051.7,1.77306303]
[1773147866183,1.77020276,2052.4,2051.4,8.28430819]
[1773147866184,1.77020276,2052.4,2052.1,1.77306303]
[1773147866485,1.77020276,2052.7,2052.1,1.77306303]
[1773147867786,1.77020276,2052.7,2051.9,1.77306303]
[1773147870182,1.77020276,2052.7,2052.1,1.77306303]
[1773147873782,1.73888645,2052.8,2052.5,1.84660351]
[1773147874287,1.73356768,2052.7,2052.1,1.84660351]
[1773147874480,1.73356768,2052.5,2051.9,1.84660351]
[1773147875186,1.73356768,2052.5,2051.6,6.384]
[1773147875187,1.73773362,2052.5,2052.1,1.84660351]
[1773147875385,1.73773362,2052.5,2051.9,1.84660351]
[1773147878791,1.73773362,2052.5,2052.1,1.84660351]
[1773147879991,1.73356768,2052.6,2052.3,1.84660351]
[1773147880186,1.73356768,2052.9,2052.3,1.84660351]
[1773147880889,1.73356768,2052.7,2052.1,1.84660351]
[1773147882486,0.00361066,2052.9,2051.4,12.03323723]
[1773147882487,1.73356768,2052.1,2051.8,1.84660351]
[1773147883090,1.73356768,2052.3,2051.8,1.84660351]
[1773147883489,1.73356768,2052.3,2051.5,1.84660351]
[1773147883691,1.73356768,2052.3,2051.7,1.84660351]
[1773147884996,1.73356768,2052.2,2051.5,1.84660351]
[1773147888200,1.73356768,2052.2,2051.2,1.84636446]
[1773147888396,1.79237237,2051.9,2051.2,1.84636446]
[1773147889794,1.79237237,2051.9,2051.1,1.8524454]
[1773147891801,1.79237237,2051.6,2051.1,0.001915]
[1773147892002,1.79237237,2051.6,2051.0,1.84636446]
[1773147892904,1.79237237,2051.6,2051.0,1.85253394]
[1773147893497,1.79237237,2051.6,2051.0,0.00616948]
[1773147893804,1.79237237,2051.4,2050.9,1.84636446]
[1773147894606,1.79604632,2051.4,2050.9,1.85238555]
[1773147899814,1.79237237,2051.7,2050.9,1.85238555]
[1773147900115,1.79237237,2052.1,2050.9,1.85238555]
[1773147900315,1.79237237,2052.1,2051.1,1.84636446]
[1773147900517,1.79237237,2052.1,2051.2,1.84636446]
[1773147900813,1.79601203,2052.1,2051.2,1.84636446]
[1773147904918,1.73555223,2051.7,2050.9,0.00602109]
[1773147905721,1.73555223,2051.7,2050.9,1.71841698]
[1773147907726,0.00363966,2052.1,2050.9,1.71841698]
[1773147907727,1.73555223,2051.8,2050.9,1.71841698]
[1773147914127,1.73555223,2052.0,2051.1,1.71239589]
[1773147914327,0.00363966,2052.1,2051.3,1.71239589]
[1773147914523,6.08059913,2052.9,2051.2,6.62974]
[1773147914524,10.44400155,2053.0,2051.5,1.71239589]
[1773147914726,1.73555223,2052.7,2051.7,1.71239589]
[1773147914926,1.73555223,2052.7,2051.9,1.71239589]
[1773147915528,1.73555223,2053.1,2051.9,1.71239589]
[1773147915726,1.7406117,2052.7,2051.9,1.71239589]
[1773147915933,0.00505947,2052.7,2051.9,1.71239589]
[1773147916730,1.7406117,2052.7,2051.9,1.71239589]
[1773147920135,0.00505947,2052.7,2051.9,1.71239589]
[1773147921133,1.7406117,2052.7,2051.9,1.71239589]
[1773147922538,0.00505947,2052.7,2051.9,1.71239589]
[1773147923231,1.7406117,2052.7,2051.9,1.71239589]
[1773147924836,1.7406117,2052.7,2051.0,1.71239589]
[1773147924837,1.73555223,2052.5,2051.0,1.71239589]
[1773147925034,1.73555223,2052.3,2051.0,1.71239589]
[1773147925441,1.73555223,2052.3,2051.1,1.71239589]
[1773147930448,1.73555223,2052.6,2051.5,1.71239589]
[1773147930643,1.73555223,2052.6,2051.7,1.71239589]
[1773147932343,0.00505947,2052.7,2051.7,1.71239589]
[1773147933040,1.7406117,2052.7,2051.7,1.71239589]
[1773147935047,1.7406117,2052.7,2051.9,1.75326146]
[1773147938346,1.7406117,2052.7,2052.1,1.75326146]
[1773147938551,1.73708964,2053.4,2052.1,1.75326146]
[1773147939046,4.04368187,2053.8,2052.3,1.75326146]
[1773147939047,1.73708964,2053.2,2052.3,1.75326146]
[1773147939248,1.73708964,2053.2,2052.4,1.75326146]
[1773147939444,1.74260875,2053.2,2052.4,1.75700837]
[1773147940943,1.73708964,2053.7,2052.6,1.75326146]
[1773147941144,1.73708964,2053.7,2052.7,8.13626146]
[1773147941346,1.73708964,2053.7,2052.4,0.00374691]
[1773147941347,1.73708964,2053.3,2052.5,1.75326146]
[1773147941543,1.73708964,2053.1,2052.2,1.75326146]
[1773147941745,1.73708964,2053.1,2052.0,1.75326146]
[1773147942145,0.24353,2053.0,2052.0,1.75326146]
[1773147942351,1.73708964,2052.9,2052.0,1.75326146]
[1773147942552,1.74199955,2052.9,2052.0,1.75707102]
[1773147943951,1.73708964,2052.7,2052.0,0.00380956]
[1773147944253,1.73708964,2052.5,2051.6,1.75326146]
[1773147945351,1.73708964,2052.5,2051.6,1.75818987]
[1773147947860,1.73708964,2052.5,2051.6,0.00492841]
[1773147948756,1.79679273,2052.3,2051.6,0.00492841]
[1773147950858,0.24362,2052.2,2051.3,1.82313721]
[1773147951064,1.79679273,2052.1,2051.3,1.82313721]
[1773147951759,1.79679273,2052.6,2051.3,1.82313721]
[1773147951960,1.79679273,2052.6,2051.3,1.82753675]
[1773147952360,1.79679273,2052.4,2051.3,1.82753675]
[1773147954167,1.79679273,2052.4,2051.6,1.82313721]
[1773147964978,1.87530491,2052.7,2052.0,1.87611952]
[1773147965182,0.00490991,2052.9,2052.2,1.87611952]
[1773147967883,1.88021482,2052.9,2052.2,1.87611952]
[1773147970580,0.00490991,2052.9,2052.2,1.87611952]
[1773147971286,1.88021482,2052.9,2052.2,1.87611952]
[1773147971790,0.00490991,2052.9,2052.2,1.87611952]
[1773147972683,4.05016207,2053.7,2052.2,1.87611952]
[1773147972889,1.87530491,2053.6,2052.5,1.87611952]
[1773147973186,2.11877491,2053.6,2052.5,1.87611952]
[1773147973891,2.12462132,2053.6,2052.5,1.87611952]
[1773147974389,1.87530491,2054.2,2053.2,1.87611952]
[1773147975481,1.88121837,2054.2,2053.2,1.88056355]
[1773147975680,1.87530491,2054.0,2053.2,1.88056355]
[1773147976486,0.00591346,2054.2,2053.5,1.87611952]
[1773147976686,1.87530491,2054.6,2053.5,1.87611952]
[1773147976888,0.24335,2054.5,2053.5,1.87611952]
[1773147977090,1.87530491,2054.4,2053.5,1.87611952]
[1773147977693,1.87922029,2054.4,2053.5,1.87611952]
[1773147978092,0.00391538,2054.4,2053.5,1.87611952]
[1773147978291,0.00391538,2054.4,2053.7,1.87611952]
[1773147978495,1.87530491,2054.9,2053.8,1.87611952]
[1773147978796,1.87530491,2054.7,2053.8,1.87611952]
[1773147978996,1.87530491,2054.5,2053.8,1.87611952]
[1773147979395,1.88112737,2054.5,2053.8,1.87611952]
[1773147984193,0.00582246,2054.5,2053.8,1.87611952]
[1773147984698,1.88112737,2054.5,2053.8,1.87611952]
[1773147985203,1.88112737,2054.5,2053.2,9.23440907]
[1773147985204,1.87530491,2053.7,2053.2,0.00444403]
[1773147985502,1.87530491,2053.7,2052.9,1.87611952]
[1773147986601,1.87530491,2053.7,2052.9,1.87966426]
[1773147989001,0.24338,2054.3,2052.9,1.87966426]
[1773147989002,1.87530491,2054.1,2052.9,1.87966426]
[1773147991407,1.87530491,2053.9,2052.9,1.87966426]
[1773147992410,1.87530491,2053.9,2053.1,1.87611952]
[1773147995614,1.90213879,2054.2,2053.1,1.87611952]
[1773147995807,1.65874879,2054.2,2053.2,1.65195631]
[1773147997013,1.90213879,2054.2,2053.2,1.65195631]
[1773148001104,0.00582246,2054.5,2053.9,1.65195631]
[1773148001304,1.66457125,2054.5,2053.7,1.65195631]
[1773148003313,0.00582246,2054.5,2053.7,1.65195631]
[1773148005012,1.66457125,2054.5,2053.7,1.65195631]
[1773148007111,1.66457125,2054.5,2053.5,1.67964288]
[1773148008015,1.64628331,2054.3,2053.5,1.67964288]
[1773148012713,0.24917246,2054.5,2053.5,1.67964288]
[1773148012714,1.64628331,2054.1,2053.5,1.67964288]
[1773148012920,1.64628331,2054.1,2053.3,1.67964288]
[1773148013117,1.64628331,2053.9,2053.0,1.67964288]
[1773148014518,1.64628331,2053.7,2053.0,1.67964288]
[1773148015113,1.64628331,2053.5,2052.7,1.67964288]
[1773148016020,1.64628331,2053.5,2052.7,1.68543179]
[1773148016822,1.64628331,2053.7,2052.7,1.68543179]
[1773148020323,1.64628331,2053.7,2052.7,1.92898179]
[1773148021626,1.64628331,2054.0,2052.7,1.92898179]
[1773148023920,1.67643876,2053.8,2052.7,1.68543179]
[1773148027835,1.67643876,2053.8,2052.9,1.63449136]
[1773148028336,1.67643876,2054.0,2053.1,1.63449136]
[1773148033329,1.67643876,2054.2,2053.3,1.63449136]
[1773148038429,1.68226122,2054.5,2053.7,1.63449136]
[1773148038632,1.68226122,2054.5,2053.9,1.63449136]
[1773148039631,1.68226122,2054.5,2053.5,1.63449136]
[1773148040033,1.67643876,2054.3,2053.5,1.63449136]
[1773148042341,1.67643876,2054.1,2053.1,1.63449136]
[1773148047039,1.67643876,2053.9,2053.1,1.63449136]
[1773148051839,1.67643876,2054.3,2053.3,1.63449136]
[1773148052043,1.67643876,2054.3,2053.5,1.63449136]
[1773148064554,1.6784504,2054.5,2053.7,1.53110509]
[1773148068362,0.00582246,2054.5,2053.7,1.53110509]
[1773148069959,1.64924423,2054.5,2053.7,1.53110509]
[1773148070162,0.00582246,2054.5,2053.9,1.53773519]
[1773148070863,1.64924423,2054.5,2053.9,1.53773519]
[1773148074671,1.64924423,2054.5,2053.5,1.53773519]
[1773148081373,1.64924423,2054.5,2053.7,1.53773519]
[1773148081570,0.00582246,2054.5,2054.2,1.53773519]
[1773148081766,1.64342177,2054.7,2054.2,1.53773519]
[1773148081970,1.64342177,2055.1,2054.4,1.53773519]
[1773148082171,1.64342177,2054.9,2054.4,1.53773519]
[1773148082673,1.64342177,2054.5,2053.9,1.53773519]
[1773148083769,1.64342177,2054.5,2053.9,1.54238759]
[1773148087875,1.59095759,2054.7,2054.1,1.52552686]
[1773148088078,1.59095759,2054.7,2054.3,1.52552686]
[1773148088776,1.59466986,2054.9,2054.3,1.52552686]
[1773148088978,1.59466986,2054.9,2054.5,1.52552686]
[1773148089875,1.59095759,2055.1,2054.5,1.52552686]
[1773148090078,1.59095759,2055.1,2054.7,1.52552686]
[1773148090677,1.59095759,2055.1,2054.5,1.52552686]
[1773148091173,0.00483263,2055.1,2054.5,1.52552686]
[1773148091380,0.00291754,2055.1,2054.9,1.52552686]
[1773148091578,1.59095759,2055.3,2054.9,1.52552686]
[1773148092071,8.27166463,2055.7,2054.9,1.52552686]
[1773148092072,6.377,2055.7,2054.9,1.52552686]
[1773148092277,1.59095759,2055.5,2054.9,1.52552686]
[1773148092677,1.59451366,2055.5,2054.9,1.52552686]
[1773148093480,1.59095759,2055.3,2054.7,1.52552686]
[1773148093681,1.59095759,2055.1,2054.5,1.52552686]
[1773148094585,1.59095759,2055.4,2054.5,1.52552686]
[1773148096082,1.59095759,2055.4,2054.7,1.52552686]
[1773148098084,0.00355607,2055.5,2054.7,1.52552686]
[1773148098290,1.59095759,2056.1,2055.1,1.52552686]
[1773148098581,1.59095759,2056.1,2055.2,1.52552686]
[1773148099083,1.59095759,2056.6,2055.4,1.52552686]
[1773148099387,1.59713297,2056.6,2055.4,1.52936643]
[1773148101387,1.59713297,2056.6,2055.6,1.52552686]
[1773148103986,1.59095759,2057.2,2056.0,1.52552686]
[1773148104188,1.59095759,2057.2,2056.1,1.52552686]